[Event "Titled Tuesday Blitz October 18 Late 2022"]
[White "Eisa Mohmood, Alkhoori"]
[Black "Ballester Llagaria, Luis Eduardo"]
[WhiteFideId "9316116"]
[BlackFideId "2297620"]
[WhiteElo "1245"]
[BlackElo "2344"]
[Result "1-0"]
[Round "06"]
[TimeControl "180+1"]
[Date "2022.10.19"]
[WhiteClock "0:00:16"]
[BlackClock "0:00:05"]

1. e4 {[%clk 0:02:57]}  c5 {[%clk 0:02:58]} 2. Nf3 {[%clk 0:02:57]}  e6 {[%clk 0:02:56]} 3. d4 {[%clk 0:02:57]}  cxd4 {[%clk 0:02:57]} 4. Nxd4 {[%clk 0:02:57]}  Nc6 {[%clk 0:02:58]} 5. Nc3 {[%clk 0:02:57]}  Qc7 {[%clk 0:02:58]} 6. a3 {[%clk 0:02:52]}  a6 {[%clk 0:02:56]} 7. Be3 {[%clk 0:02:50]}  Nf6 {[%clk 0:02:56]} 8. Nb3 {[%clk 0:02:49]}  b5 {[%clk 0:02:52]} 9. Bd3 {[%clk 0:02:50]}  Bb7 {[%clk 0:02:52]} 10. O-O {[%clk 0:02:50]}  d6 {[%clk 0:02:50]} 11. f4 {[%clk 0:02:51]}  Be7 {[%clk 0:02:50]} 12. Qf3 {[%clk 0:02:51]}  h5 {[%clk 0:02:50]} 13. Kh1 {[%clk 0:02:50]}  h4 {[%clk 0:02:46]} 14. h3 {[%clk 0:02:48]}  b4 {[%clk 0:02:30]} 15. Na4 {[%clk 0:02:44]}  d5 {[%clk 0:02:22]} 16. e5 {[%clk 0:02:43]}  Nh5 {[%clk 0:01:41]} 17. Bf2 {[%clk 0:02:33]}  g6 {[%clk 0:01:24]} 18. Rfe1 {[%clk 0:02:26]}  Rb8 {[%clk 0:01:18]} 19. Nac5 {[%clk 0:02:16]}  Bc8 {[%clk 0:01:08]} 20. Nxa6 {[%clk 0:02:09]}  Bxa6 {[%clk 0:01:07]} 21. Bxa6 {[%clk 0:02:09]}  bxa3 {[%clk 0:01:08]} 22. bxa3 {[%clk 0:02:09]}  Na5 {[%clk 0:01:05]} 23. a4 {[%clk 0:02:02]}  Rb4 {[%clk 0:00:54]} 24. Bb5+ {[%clk 0:02:00]}  Kf8 {[%clk 0:00:54]} 25. Nxa5 {[%clk 0:01:46]}  Qxa5 {[%clk 0:00:55]} 26. Qc3 {[%clk 0:01:47]}  Qd8 {[%clk 0:00:28]} 27. Bxh4 {[%clk 0:01:42]}  Nxf4 {[%clk 0:00:24]} 28. Qxb4 {[%clk 0:01:39]}  Rxh4 {[%clk 0:00:22]} 29. Qd2 {[%clk 0:01:36]}  d4 {[%clk 0:00:19]} 30. Re4 {[%clk 0:01:34]}  Bg5 {[%clk 0:00:16]} 31. Rf1 {[%clk 0:01:31]}  Nxh3 {[%clk 0:00:13]} 32. Qb4+ {[%clk 0:01:29]}  Be7 {[%clk 0:00:12]} 33. Qe1 {[%clk 0:01:21]}  Nf4+ {[%clk 0:00:07]} 34. Kg1 {[%clk 0:01:16]}  d3 {[%clk 0:00:08]} 35. Rexf4 {[%clk 0:01:16]}  Bc5+ {[%clk 0:00:08]} 36. R1f2 {[%clk 0:01:13]}  d2 {[%clk 0:00:08]} 37. Rxf7+ {[%clk 0:01:11]}  Kg8 {[%clk 0:00:07]} 38. Qd1 {[%clk 0:00:45]}  Qd4 {[%clk 0:00:07]} 39. g3 {[%clk 0:00:24]}  Re4 {[%clk 0:00:05]} 40. Kg2 {[%clk 0:00:21]}  Re1 {[%clk 0:00:04]} 41. Qxd2 {[%clk 0:00:19]}  Qe4+ {[%clk 0:00:05]} 42. R7f3 {[%clk 0:00:17]}  Bxf2 {[%clk 0:00:04]} 43. Qxf2 {[%clk 0:00:17]}  Re2 {[%clk 0:00:04]} 44. Qxe2 {[%clk 0:00:15]}  Qxe2+ {[%clk 0:00:05]} 45. Bxe2 {[%clk 0:00:16]} 1-0


[Site "https://www.chess.com"]

[Event "Titled Tuesday Blitz October 18 Late 2022"]
[White "Fajdetic, Hrvoje"]
[Black "Riehle, Marco"]
[WhiteFideId "14501945"]
[BlackFideId "12904392"]
[WhiteElo "2172"]
[BlackElo "2462"]
[Result "1-0"]
[Round "06"]
[TimeControl "180+1"]
[Date "2022.10.18"]
[WhiteClock "0:00:06"]
[BlackClock "0:00:03"]

1. d4 {[%clk 0:02:55]}  Nf6 {[%clk 0:02:59]} 2. Bf4 {[%clk 0:02:55]}  d5 {[%clk 0:02:58]} 3. e3 {[%clk 0:02:55]}  e6 {[%clk 0:02:58]} 4. Nf3 {[%clk 0:02:55]}  Bd6 {[%clk 0:02:58]} 5. Bg3 {[%clk 0:02:55]}  c5 {[%clk 0:02:58]} 6. c3 {[%clk 0:02:53]}  O-O {[%clk 0:02:58]} 7. Bd3 {[%clk 0:02:52]}  Nc6 {[%clk 0:02:58]} 8. Nbd2 {[%clk 0:02:52]}  Re8 {[%clk 0:02:58]} 9. Ne5 {[%clk 0:02:52]}  Bxe5 {[%clk 0:02:58]} 10. dxe5 {[%clk 0:02:50]}  Nd7 {[%clk 0:02:56]} 11. f4 {[%clk 0:02:50]}  c4 {[%clk 0:02:56]} 12. Bc2 {[%clk 0:02:50]}  Qb6 {[%clk 0:02:50]} 13. O-O {[%clk 0:02:43]}  Qxe3+ {[%clk 0:02:49]} 14. Kh1 {[%clk 0:02:43]}  Qb6 {[%clk 0:02:50]} 15. Rb1 {[%clk 0:02:40]}  Nf8 {[%clk 0:02:43]} 16. Nf3 {[%clk 0:02:33]}  Bd7 {[%clk 0:02:41]} 17. Ng5 {[%clk 0:02:28]}  Ne7 {[%clk 0:02:27]} 18. Bf2 {[%clk 0:02:25]}  Qa6 {[%clk 0:02:24]} 19. Qh5 {[%clk 0:02:11]}  Neg6 {[%clk 0:02:23]} 20. Bc5 {[%clk 0:01:56]}  h6 {[%clk 0:02:12]} 21. Nxf7 {[%clk 0:01:51]}  Kxf7 {[%clk 0:01:51]} 22. Bxf8 {[%clk 0:01:50]}  Kxf8 {[%clk 0:01:42]} 23. Qxg6 {[%clk 0:01:45]}  Qxa2 {[%clk 0:01:26]} 24. f5 {[%clk 0:01:39]}  exf5 {[%clk 0:01:25]} 25. Bxf5 {[%clk 0:01:39]}  Bxf5 {[%clk 0:01:25]} 26. Rxf5+ {[%clk 0:01:25]}  Kg8 {[%clk 0:01:25]} 27. Rbf1 {[%clk 0:01:17]}  Rf8 {[%clk 0:01:15]} 28. Qe6+ {[%clk 0:01:16]}  Kh7 {[%clk 0:01:14]} 29. h4 {[%clk 0:01:03]}  Rxf5 {[%clk 0:01:11]} 30. Qxf5+ {[%clk 0:00:57]}  Kh8 {[%clk 0:01:09]} 31. e6 {[%clk 0:00:57]}  Qa4 {[%clk 0:00:58]} 32. Qxd5 {[%clk 0:00:52]}  Re8 {[%clk 0:00:53]} 33. Rf7 {[%clk 0:00:48]}  Qa1+ {[%clk 0:00:44]} 34. Kh2 {[%clk 0:00:46]}  Qe1 {[%clk 0:00:45]} 35. Qd4 {[%clk 0:00:28]}  Rg8 {[%clk 0:00:30]} 36. e7 {[%clk 0:00:28]}  Qe6 {[%clk 0:00:30]} 37. Qf4 {[%clk 0:00:22]}  b5 {[%clk 0:00:28]} 38. Qf5 {[%clk 0:00:17]}  Qd6+ {[%clk 0:00:24]} 39. Kh3 {[%clk 0:00:17]}  a6 {[%clk 0:00:16]} 40. h5 {[%clk 0:00:14]}  b4 {[%clk 0:00:13]} 41. cxb4 {[%clk 0:00:13]}  Qxb4 {[%clk 0:00:13]} 42. Qe6 {[%clk 0:00:08]}  Re8 {[%clk 0:00:09]} 43. Qe5 {[%clk 0:00:06]}  Qb3+ {[%clk 0:00:05]} 44. g3 {[%clk 0:00:06]}  Rg8 {[%clk 0:00:03]} 45. Rf8 {[%clk 0:00:06]} 1-0


[Site "https://www.chess.com"]

[Event "Titled Tuesday Blitz October 18 Late 2022"]
[White "Forgacs, Attila Jr."]
[Black "Urazayev, Arystanbek"]
[WhiteFideId "773654"]
[BlackFideId "13709810"]
[WhiteElo "2168"]
[BlackElo "2441"]
[Result "0-1"]
[Round "06"]
[TimeControl "180+1"]
[Date "2022.10.19"]
[WhiteClock "0:00:15"]
[BlackClock "0:00:21"]

1. e4 {[%clk 0:03:00]}  c5 {[%clk 0:02:56]} 2. d3 {[%clk 0:03:00]}  d6 {[%clk 0:02:56]} 3. g3 {[%clk 0:03:01]}  g6 {[%clk 0:02:55]} 4. Bg2 {[%clk 0:03:01]}  Bg7 {[%clk 0:02:55]} 5. f4 {[%clk 0:03:01]}  Nc6 {[%clk 0:02:48]} 6. Nf3 {[%clk 0:03:01]}  Nf6 {[%clk 0:02:49]} 7. O-O {[%clk 0:03:01]}  O-O {[%clk 0:02:49]} 8. Nc3 {[%clk 0:03:02]}  Rb8 {[%clk 0:02:50]} 9. a4 {[%clk 0:03:01]}  a6 {[%clk 0:02:50]} 10. h3 {[%clk 0:03:01]}  b5 {[%clk 0:02:50]} 11. axb5 {[%clk 0:03:02]}  axb5 {[%clk 0:02:51]} 12. Be3 {[%clk 0:03:02]}  b4 {[%clk 0:02:51]} 13. Ne2 {[%clk 0:03:02]}  Bb7 {[%clk 0:02:49]} 14. Qd2 {[%clk 0:03:02]}  Nd7 {[%clk 0:02:49]} 15. Rab1 {[%clk 0:03:00]}  Ra8 {[%clk 0:02:48]} 16. g4 {[%clk 0:03:00]}  Ra2 {[%clk 0:02:48]} 17. b3 {[%clk 0:02:57]}  Qb6 {[%clk 0:02:30]} 18. f5 {[%clk 0:02:56]}  Nd4 {[%clk 0:02:30]} 19. Nexd4 {[%clk 0:02:50]}  cxd4 {[%clk 0:02:30]} 20. Bh6 {[%clk 0:02:50]}  Rc8 {[%clk 0:02:29]} 21. Bxg7 {[%clk 0:02:49]}  Kxg7 {[%clk 0:02:29]} 22. fxg6 {[%clk 0:02:47]}  Rcxc2 {[%clk 0:02:24]} 23. Qg5 {[%clk 0:02:01]}  Rxg2+ {[%clk 0:02:23]} 24. Kh1 {[%clk 0:02:02]}  hxg6 {[%clk 0:02:18]} 25. Qxe7 {[%clk 0:01:55]}  Ne5 {[%clk 0:02:14]} 26. g5 {[%clk 0:01:33]}  Bc8 {[%clk 0:01:36]} 27. Nh4 {[%clk 0:01:20]}  Rh2+ {[%clk 0:01:31]} 28. Kg1 {[%clk 0:01:21]}  Be6 {[%clk 0:01:18]} 29. Rbc1 {[%clk 0:01:08]}  Rxh3 {[%clk 0:01:18]} 30. Qf6+ {[%clk 0:00:55]}  Kh7 {[%clk 0:01:18]} 31. Nxg6 {[%clk 0:00:35]}  Nxg6 {[%clk 0:01:01]} 32. Rc8 {[%clk 0:00:34]}  Qb7 {[%clk 0:00:36]} 33. Qd8 {[%clk 0:00:24]}  Bxc8 {[%clk 0:00:25]} 34. Rc1 {[%clk 0:00:15]}  Qe7 {[%clk 0:00:21]} 0-1


[Site "https://www.chess.com"]

[Event "Titled Tuesday Blitz October 18 Late 2022"]
[White "Galaktionov, Artem"]
[Black "miragha_yev"]
[WhiteFideId "24175471"]
[WhiteElo "2278"]
[BlackElo "2763"]
[Result "1/2-1/2"]
[Round "06"]
[TimeControl "180+1"]
[Date "2022.10.18"]
[WhiteClock "0:00:59"]
[BlackClock "0:00:22"]

1. d4 {[%clk 0:02:59]}  d5 {[%clk 0:02:59]} 2. Nf3 {[%clk 0:02:58]}  e6 {[%clk 0:02:59]} 3. c4 {[%clk 0:02:58]}  Nf6 {[%clk 0:02:56]} 4. Nc3 {[%clk 0:02:57]}  Be7 {[%clk 0:02:56]} 5. Bf4 {[%clk 0:02:58]}  O-O {[%clk 0:02:56]} 6. e3 {[%clk 0:02:58]}  c5 {[%clk 0:02:55]} 7. dxc5 {[%clk 0:02:57]}  Bxc5 {[%clk 0:02:54]} 8. cxd5 {[%clk 0:02:58]}  exd5 {[%clk 0:02:55]} 9. Be2 {[%clk 0:02:57]}  Nc6 {[%clk 0:02:55]} 10. O-O {[%clk 0:02:58]}  a6 {[%clk 0:02:55]} 11. Rc1 {[%clk 0:02:57]}  Ba7 {[%clk 0:02:54]} 12. Na4 {[%clk 0:02:55]}  h6 {[%clk 0:02:53]} 13. Nc5 {[%clk 0:02:52]}  Bxc5 {[%clk 0:02:37]} 14. Rxc5 {[%clk 0:02:53]}  Be6 {[%clk 0:02:38]} 15. Qb3 {[%clk 0:02:46]}  Ne4 {[%clk 0:02:36]} 16. Rc2 {[%clk 0:02:42]}  Qe7 {[%clk 0:02:35]} 17. Qb6 {[%clk 0:02:28]}  g5 {[%clk 0:02:24]} 18. Bg3 {[%clk 0:02:25]}  Nxg3 {[%clk 0:02:24]} 19. hxg3 {[%clk 0:02:26]}  Rfc8 {[%clk 0:02:20]} 20. Rfc1 {[%clk 0:02:25]}  Qb4 {[%clk 0:02:16]} 21. Qc5 {[%clk 0:02:10]}  Qxc5 {[%clk 0:02:13]} 22. Rxc5 {[%clk 0:02:11]}  Nb4 {[%clk 0:02:02]} 23. a3 {[%clk 0:02:10]}  Rxc5 {[%clk 0:02:02]} 24. Rxc5 {[%clk 0:02:11]}  Nc6 {[%clk 0:02:02]} 25. Kf1 {[%clk 0:02:07]}  Kf8 {[%clk 0:02:01]} 26. Nd4 {[%clk 0:02:03]}  Nxd4 {[%clk 0:02:00]} 27. exd4 {[%clk 0:02:04]}  Rc8 {[%clk 0:02:00]} 28. Ke1 {[%clk 0:02:02]}  Ke7 {[%clk 0:02:00]} 29. Kd2 {[%clk 0:02:02]}  Kd6 {[%clk 0:02:00]} 30. b4 {[%clk 0:02:01]}  Rc6 {[%clk 0:01:58]} 31. f4 {[%clk 0:01:57]}  Bc8 {[%clk 0:01:55]} 32. Bf3 {[%clk 0:01:56]}  Rxc5 {[%clk 0:01:49]} 33. dxc5+ {[%clk 0:01:55]}  Kc6 {[%clk 0:01:47]} 34. Kc3 {[%clk 0:01:55]}  Be6 {[%clk 0:01:43]} 35. Kd4 {[%clk 0:01:55]}  f6 {[%clk 0:01:43]} 36. a4 {[%clk 0:01:52]}  Bf7 {[%clk 0:01:41]} 37. Be2 {[%clk 0:01:51]}  b5 {[%clk 0:01:21]} 38. cxb6 {[%clk 0:01:44]}  Kxb6 {[%clk 0:01:22]} 39. Bf3 {[%clk 0:01:41]}  Be8 {[%clk 0:00:56]} 40. Bd1 {[%clk 0:01:23]}  h5 {[%clk 0:00:54]} 41. Kxd5 {[%clk 0:01:16]}  Bc6+ {[%clk 0:00:50]} 42. Ke6 {[%clk 0:01:14]}  gxf4 {[%clk 0:00:51]} 43. gxf4 {[%clk 0:01:13]}  h4 {[%clk 0:00:49]} 44. Kxf6 {[%clk 0:01:05]}  Bxg2 {[%clk 0:00:47]} 45. Bg4 {[%clk 0:01:05]}  h3 {[%clk 0:00:43]} 46. Bxh3 {[%clk 0:01:05]}  Bxh3 {[%clk 0:00:41]} 47. f5 {[%clk 0:01:06]}  Bg4 {[%clk 0:00:38]} 48. Kg6 {[%clk 0:01:04]}  Kc6 {[%clk 0:00:36]} 49. f6 {[%clk 0:01:04]}  Be6 {[%clk 0:00:36]} 50. f7 {[%clk 0:01:04]}  Bxf7+ {[%clk 0:00:34]} 51. Kxf7 {[%clk 0:01:05]}  Kd5 {[%clk 0:00:34]} 52. Ke7 {[%clk 0:00:59]}  Kc4 {[%clk 0:00:25]} 53. b5 {[%clk 0:00:58]}  axb5 {[%clk 0:00:26]} 54. axb5 {[%clk 0:00:59]}  Kxb5 {[%clk 0:00:22]} 1/2-1/2


[Site "https://www.chess.com"]

[Event "Titled Tuesday Blitz October 18 Late 2022"]
[White "Gonzalez, Francisco Silva"]
[Black "Pasti, Aron"]
[WhiteFideId "1512285"]
[BlackFideId "785857"]
[WhiteElo "2159"]
[BlackElo "2250"]
[Result "1-0"]
[Round "06"]
[TimeControl "180+1"]
[Date "2022.10.19"]
[WhiteClock "0:00:59"]
[BlackClock "0:00:12"]

1. d4 {[%clk 0:02:53]}  Nf6 {[%clk 0:02:59]} 2. c4 {[%clk 0:02:46]}  e6 {[%clk 0:02:59]} 3. Nc3 {[%clk 0:02:44]}  d5 {[%clk 0:02:59]} 4. Bg5 {[%clk 0:02:43]}  Be7 {[%clk 0:02:56]} 5. e3 {[%clk 0:02:43]}  h6 {[%clk 0:02:56]} 6. Bh4 {[%clk 0:02:43]}  O-O {[%clk 0:02:56]} 7. Nf3 {[%clk 0:02:43]}  c6 {[%clk 0:02:55]} 8. Qc2 {[%clk 0:02:43]}  Nbd7 {[%clk 0:02:55]} 9. a3 {[%clk 0:02:42]}  a6 {[%clk 0:02:54]} 10. Rd1 {[%clk 0:02:42]}  dxc4 {[%clk 0:02:46]} 11. Bxc4 {[%clk 0:02:41]}  b5 {[%clk 0:02:46]} 12. Ba2 {[%clk 0:02:42]}  c5 {[%clk 0:02:46]} 13. Bxf6 {[%clk 0:02:39]}  Bxf6 {[%clk 0:02:38]} 14. Bb1 {[%clk 0:02:38]}  g6 {[%clk 0:02:36]} 15. dxc5 {[%clk 0:02:38]}  Qc7 {[%clk 0:02:34]} 16. b4 {[%clk 0:02:37]}  Nxc5 {[%clk 0:02:32]} 17. bxc5 {[%clk 0:02:36]}  Bb7 {[%clk 0:02:16]} 18. O-O {[%clk 0:02:34]}  Bxf3 {[%clk 0:02:04]} 19. gxf3 {[%clk 0:02:33]}  Bg7 {[%clk 0:02:02]} 20. Ne4 {[%clk 0:02:31]}  f5 {[%clk 0:02:01]} 21. Nd6 {[%clk 0:02:27]}  Qc6 {[%clk 0:01:50]} 22. Kg2 {[%clk 0:02:24]}  g5 {[%clk 0:01:49]} 23. Ba2 {[%clk 0:02:09]}  Rf6 {[%clk 0:01:40]} 24. e4 {[%clk 0:02:04]}  g4 {[%clk 0:01:28]} 25. fxg4 {[%clk 0:02:02]}  Rg6 {[%clk 0:01:16]} 26. h3 {[%clk 0:01:44]}  fxg4 {[%clk 0:01:14]} 27. h4 {[%clk 0:01:42]}  Rf8 {[%clk 0:01:08]} 28. Kg1 {[%clk 0:01:35]}  Be5 {[%clk 0:00:59]} 29. Bb3 {[%clk 0:01:26]}  Rf3 {[%clk 0:00:39]} 30. Rd3 {[%clk 0:01:25]}  Rxd3 {[%clk 0:00:26]} 31. Qxd3 {[%clk 0:01:24]}  g3 {[%clk 0:00:27]} 32. f4 {[%clk 0:01:19]}  Qxc5+ {[%clk 0:00:27]} 33. Kg2 {[%clk 0:01:17]}  Qxd6 {[%clk 0:00:23]} 34. Qxd6 {[%clk 0:01:14]}  Bxd6 {[%clk 0:00:24]} 35. f5 {[%clk 0:01:14]}  Rg4 {[%clk 0:00:21]} 36. Bxe6+ {[%clk 0:01:13]}  Kf8 {[%clk 0:00:20]} 37. Rd1 {[%clk 0:01:11]}  Ke7 {[%clk 0:00:19]} 38. Bc8 {[%clk 0:01:00]}  Be5 {[%clk 0:00:14]} 39. f6+ {[%clk 0:00:59]}  Kxf6 {[%clk 0:00:12]} 40. Bxg4 {[%clk 0:00:59]} 1-0


[Site "https://www.chess.com"]

[Event "Titled Tuesday Blitz October 18 Late 2022"]
[White "Hoffmann, Asa"]
[Black "P., Komal Kishore"]
[WhiteFideId "2001470"]
[BlackFideId "5016703"]
[WhiteElo "2117"]
[BlackElo "2101"]
[Result "1-0"]
[Round "06"]
[TimeControl "180+1"]
[Date "2022.10.19"]
[WhiteClock "0:02:34"]
[BlackClock "0:02:03"]

1. d4 {[%clk 0:03:00]}  d5 {[%clk 0:02:58]} 2. Bg5 {[%clk 0:02:53]}  c5 {[%clk 0:02:58]} 3. dxc5 {[%clk 0:02:51]}  Qa5+ {[%clk 0:02:55]} 4. Nc3 {[%clk 0:02:45]}  e6 {[%clk 0:02:51]} 5. e4 {[%clk 0:02:44]}  dxe4 {[%clk 0:02:36]} 6. b4 {[%clk 0:02:42]}  Qc7 {[%clk 0:02:24]} 7. Nb5 {[%clk 0:02:39]}  Qd7 {[%clk 0:02:23]} 8. Qxd7+ {[%clk 0:02:38]}  Kxd7 {[%clk 0:02:23]} 9. O-O-O+ {[%clk 0:02:37]}  Kc6 {[%clk 0:02:16]} 10. Nd4+ {[%clk 0:02:36]}  Kc7 {[%clk 0:02:12]} 11. Bf4+ {[%clk 0:02:35]}  Kd7 {[%clk 0:02:03]} 12. Bb5+ {[%clk 0:02:34]} 1-0


[Site "https://www.chess.com"]

[Event "Titled Tuesday Blitz October 18 Late 2022"]
[White "Iliaguev, Nisim"]
[Black "Zhigalko, Sergei"]
[WhiteFideId "2817276"]
[BlackFideId "13502956"]
[WhiteElo "2264"]
[BlackElo "2662"]
[Result "1-0"]
[Round "06"]
[TimeControl "180+1"]
[Date "2022.10.18"]
[WhiteClock "0:00:21"]
[BlackClock "0:00:04"]

1. d4 {[%clk 0:03:00]}  Nf6 {[%clk 0:02:58]} 2. Nf3 {[%clk 0:03:00]}  e6 {[%clk 0:02:59]} 3. Bg5 {[%clk 0:02:58]}  h6 {[%clk 0:02:59]} 4. Bxf6 {[%clk 0:02:53]}  Qxf6 {[%clk 0:03:00]} 5. e4 {[%clk 0:02:51]}  d6 {[%clk 0:02:54]} 6. c3 {[%clk 0:02:46]}  Nd7 {[%clk 0:02:50]} 7. Nbd2 {[%clk 0:02:43]}  Qe7 {[%clk 0:02:46]} 8. Bd3 {[%clk 0:02:43]}  g6 {[%clk 0:02:46]} 9. O-O {[%clk 0:02:43]}  Bg7 {[%clk 0:02:46]} 10. Qc2 {[%clk 0:02:40]}  O-O {[%clk 0:02:46]} 11. a4 {[%clk 0:02:33]}  a5 {[%clk 0:02:40]} 12. h3 {[%clk 0:02:27]}  b6 {[%clk 0:02:35]} 13. Rfe1 {[%clk 0:02:23]}  Bb7 {[%clk 0:02:35]} 14. Nf1 {[%clk 0:02:19]}  Rfd8 {[%clk 0:02:12]} 15. Ng3 {[%clk 0:02:19]}  e5 {[%clk 0:01:59]} 16. Rad1 {[%clk 0:02:12]}  Nf8 {[%clk 0:01:52]} 17. Bc4 {[%clk 0:02:10]}  Ne6 {[%clk 0:01:49]} 18. h4 {[%clk 0:02:04]}  h5 {[%clk 0:01:40]} 19. Qb3 {[%clk 0:02:02]}  Bf6 {[%clk 0:01:23]} 20. Nf1 {[%clk 0:01:55]}  Rac8 {[%clk 0:01:05]} 21. Bd5 {[%clk 0:01:50]}  Ba6 {[%clk 0:00:55]} 22. Ne3 {[%clk 0:01:47]}  Nf4 {[%clk 0:00:44]} 23. g3 {[%clk 0:01:37]}  Nxd5 {[%clk 0:00:26]} 24. Nxd5 {[%clk 0:01:34]}  Qe6 {[%clk 0:00:27]} 25. dxe5 {[%clk 0:01:26]}  dxe5 {[%clk 0:00:24]} 26. c4 {[%clk 0:01:21]}  Be7 {[%clk 0:00:14]} 27. Ng5 {[%clk 0:01:19]}  Bxg5 {[%clk 0:00:12]} 28. hxg5 {[%clk 0:01:19]}  Kg7 {[%clk 0:00:11]} 29. Qc3 {[%clk 0:01:09]}  Re8 {[%clk 0:00:05]} 30. b3 {[%clk 0:01:05]}  Bb7 {[%clk 0:00:03]} 31. Nf6 {[%clk 0:01:01]}  Re7 {[%clk 0:00:03]} 32. f4 {[%clk 0:00:57]}  Qh3 {[%clk 0:00:03]} 33. Rd2 {[%clk 0:00:48]}  h4 {[%clk 0:00:03]} 34. Rh2 {[%clk 0:00:44]}  Qxg3+ {[%clk 0:00:02]} 35. Qxg3 {[%clk 0:00:43]}  hxg3 {[%clk 0:00:03]} 36. Rh7+ {[%clk 0:00:43]}  Kf8 {[%clk 0:00:04]} 37. Rh8+ {[%clk 0:00:26]}  Kg7 {[%clk 0:00:04]} 38. Rh7+ {[%clk 0:00:27]}  Kf8 {[%clk 0:00:05]} 39. Rd1 {[%clk 0:00:27]}  exf4 {[%clk 0:00:04]} 40. Rh8+ {[%clk 0:00:22]}  Kg7 {[%clk 0:00:04]} 41. Rxc8 {[%clk 0:00:22]}  Re5 {[%clk 0:00:04]} 42. Rg8# {[%clk 0:00:21]} 1-0


[Site "https://www.chess.com"]

[Event "Titled Tuesday Blitz October 18 Late 2022"]
[White "Ismayil, Malak"]
[Black "Graif, William"]
[WhiteFideId "13412604"]
[BlackFideId "2609835"]
[WhiteElo "1879"]
[BlackElo "2205"]
[Result "0-1"]
[Round "06"]
[TimeControl "180+1"]
[Date "2022.10.19"]
[WhiteClock "0:00:13"]
[BlackClock "0:00:14"]

1. e4 {[%clk 0:03:00]}  e5 {[%clk 0:02:55]} 2. Nf3 {[%clk 0:02:58]}  Nf6 {[%clk 0:02:54]} 3. Nxe5 {[%clk 0:02:58]}  Nxe4 {[%clk 0:02:54]} 4. Nc3 {[%clk 0:02:56]}  d5 {[%clk 0:02:00]} 5. Nxe4 {[%clk 0:02:44]}  dxe4 {[%clk 0:01:55]} 6. d4 {[%clk 0:02:41]}  Nd7 {[%clk 0:01:53]} 7. Nxd7 {[%clk 0:02:37]}  Bxd7 {[%clk 0:01:46]} 8. Bc4 {[%clk 0:02:36]}  Bd6 {[%clk 0:01:43]} 9. Be3 {[%clk 0:02:29]}  O-O {[%clk 0:01:24]} 10. Qd2 {[%clk 0:02:20]}  Kh8 {[%clk 0:01:20]} 11. O-O-O {[%clk 0:02:16]}  f5 {[%clk 0:01:12]} 12. Bf4 {[%clk 0:02:10]}  Qf6 {[%clk 0:01:01]} 13. Bxd6 {[%clk 0:02:05]}  Qxd6 {[%clk 0:00:49]} 14. h4 {[%clk 0:01:41]}  Rae8 {[%clk 0:00:47]} 15. Bb3 {[%clk 0:01:28]}  f4 {[%clk 0:00:39]} 16. Rde1 {[%clk 0:01:28]}  Bg4 {[%clk 0:00:20]} 17. c3 {[%clk 0:01:18]}  Re7 {[%clk 0:00:20]} 18. Bc2 {[%clk 0:01:09]}  Rfe8 {[%clk 0:00:20]} 19. Kb1 {[%clk 0:00:33]}  Bf5 {[%clk 0:00:20]} 20. Re2 {[%clk 0:00:22]}  e3 {[%clk 0:00:17]} 21. fxe3 {[%clk 0:00:23]}  fxe3 {[%clk 0:00:18]} 22. Qd1 {[%clk 0:00:23]}  Bg4 {[%clk 0:00:18]} 23. Rhe1 {[%clk 0:00:21]}  Bxe2 {[%clk 0:00:17]} 24. Qxe2 {[%clk 0:00:22]}  Qf4 {[%clk 0:00:17]} 25. Qd3 {[%clk 0:00:22]}  g6 {[%clk 0:00:16]} 26. a4 {[%clk 0:00:19]}  e2 {[%clk 0:00:16]} 27. h5 {[%clk 0:00:15]}  Qf2 {[%clk 0:00:16]} 28. Qd2 {[%clk 0:00:14]}  Rf8 {[%clk 0:00:13]} 29. hxg6 {[%clk 0:00:13]}  Qxe1+ {[%clk 0:00:13]} 30. Qxe1 {[%clk 0:00:13]}  Rf1 {[%clk 0:00:14]} 0-1


[Site "https://www.chess.com"]

[Event "Titled Tuesday Blitz October 18 Late 2022"]
[White "Izuzquiza Gonzalez, Javier"]
[Black "Aqib Javaid Butt"]
[WhiteFideId "3101029"]
[BlackFideId "7801262"]
[WhiteElo "2034"]
[BlackElo "1659"]
[Result "1-0"]
[Round "06"]
[TimeControl "180+1"]
[Date "2022.10.19"]
[WhiteClock "0:01:59"]
[BlackClock "0:00:07"]

1. d4 {[%clk 0:03:00]}  d5 {[%clk 0:02:54]} 2. c4 {[%clk 0:03:00]}  c6 {[%clk 0:02:53]} 3. Nf3 {[%clk 0:03:00]}  Nf6 {[%clk 0:02:49]} 4. g3 {[%clk 0:03:00]}  e6 {[%clk 0:02:43]} 5. Bg2 {[%clk 0:02:59]}  Be7 {[%clk 0:02:37]} 6. O-O {[%clk 0:02:59]}  O-O {[%clk 0:02:34]} 7. Qc2 {[%clk 0:02:57]}  Nbd7 {[%clk 0:02:25]} 8. Nbd2 {[%clk 0:02:56]}  b6 {[%clk 0:01:52]} 9. e4 {[%clk 0:02:55]}  dxe4 {[%clk 0:01:44]} 10. Nxe4 {[%clk 0:02:56]}  Bb7 {[%clk 0:01:38]} 11. Rd1 {[%clk 0:02:48]}  Nxe4 {[%clk 0:01:15]} 12. Qxe4 {[%clk 0:02:47]}  Nf6 {[%clk 0:01:14]} 13. Qc2 {[%clk 0:02:46]}  Qc7 {[%clk 0:01:02]} 14. Bf4 {[%clk 0:02:45]}  Bd6 {[%clk 0:01:01]} 15. Bxd6 {[%clk 0:02:46]}  Qxd6 {[%clk 0:01:02]} 16. c5 {[%clk 0:02:47]}  Qc7 {[%clk 0:00:54]} 17. b4 {[%clk 0:02:42]}  Nd5 {[%clk 0:00:51]} 18. a3 {[%clk 0:02:40]}  a5 {[%clk 0:00:46]} 19. Qb3 {[%clk 0:02:35]}  Ba6 {[%clk 0:00:39]} 20. Ne5 {[%clk 0:02:33]}  Be2 {[%clk 0:00:28]} 21. Rd2 {[%clk 0:02:29]}  Bh5 {[%clk 0:00:27]} 22. Bxd5 {[%clk 0:02:18]}  exd5 {[%clk 0:00:18]} 23. cxb6 {[%clk 0:02:17]}  Qxb6 {[%clk 0:00:19]} 24. Nd7 {[%clk 0:02:16]}  Qb7 {[%clk 0:00:11]} 25. Nxf8 {[%clk 0:02:16]}  Rxf8 {[%clk 0:00:12]} 26. Rb1 {[%clk 0:02:10]}  Rb8 {[%clk 0:00:12]} 27. Rdb2 {[%clk 0:02:06]}  Bg6 {[%clk 0:00:10]} 28. bxa5 {[%clk 0:01:58]}  Qxb3 {[%clk 0:00:06]} 29. Rxb3 {[%clk 0:01:59]}  Rxb3 {[%clk 0:00:07]} 30. Rxb3 {[%clk 0:01:59]} 1-0


[Site "https://www.chess.com"]

[Event "Titled Tuesday Blitz October 18 Late 2022"]
[White "Janaszak, Dawid"]
[Black "Dzierzak, Radoslaw"]
[WhiteFideId "1119206"]
[BlackFideId "1161407"]
[WhiteElo "2226"]
[BlackElo "2111"]
[Result "1-0"]
[Round "06"]
[TimeControl "180+1"]
[Date "2022.10.19"]
[WhiteClock "0:02:00"]
[BlackClock "0:00:37"]

1. e4 {[%clk 0:03:00]}  c5 {[%clk 0:02:59]} 2. Nc3 {[%clk 0:03:00]}  Nc6 {[%clk 0:02:57]} 3. Bb5 {[%clk 0:02:58]}  g6 {[%clk 0:02:56]} 4. Bxc6 {[%clk 0:02:57]}  bxc6 {[%clk 0:02:56]} 5. d3 {[%clk 0:02:56]}  Bg7 {[%clk 0:02:56]} 6. Be3 {[%clk 0:02:56]}  d6 {[%clk 0:02:55]} 7. Qd2 {[%clk 0:02:53]}  Rb8 {[%clk 0:02:54]} 8. Rb1 {[%clk 0:02:49]}  e5 {[%clk 0:01:51]} 9. Nge2 {[%clk 0:02:47]}  Ne7 {[%clk 0:01:48]} 10. Bh6 {[%clk 0:02:46]}  O-O {[%clk 0:01:48]} 11. O-O {[%clk 0:02:45]}  f5 {[%clk 0:01:46]} 12. Bxg7 {[%clk 0:02:45]}  Kxg7 {[%clk 0:01:45]} 13. f4 {[%clk 0:02:46]}  fxe4 {[%clk 0:01:30]} 14. Nxe4 {[%clk 0:02:43]}  d5 {[%clk 0:01:30]} 15. Nxc5 {[%clk 0:02:31]}  Qb6 {[%clk 0:01:29]} 16. b4 {[%clk 0:02:30]}  a5 {[%clk 0:01:08]} 17. fxe5 {[%clk 0:02:17]}  axb4 {[%clk 0:01:07]} 18. d4 {[%clk 0:02:06]}  Rxf1+ {[%clk 0:00:43]} 19. Rxf1 {[%clk 0:02:05]}  Ba6 {[%clk 0:00:43]} 20. Ne6+ {[%clk 0:02:00]}  Kg8 {[%clk 0:00:41]} 21. Qh6 {[%clk 0:02:00]}  Nf5 {[%clk 0:00:37]} 22. Rxf5 {[%clk 0:02:00]} 1-0


[Site "https://www.chess.com"]